Cogmind - Beta 12 @@@ ROGUE MODE // 2023.03.27 @ 20:56:25 Player: omewwes Result: Self-destructed Performance ------------- Evolutions (1) 500 Regions Visited (4) 800 Robots Destroyed (29) 145 Value Destroyed (648) 648 Prototype IDs (24) 480 Alien Tech Used (0) 0 Bonus (300) 300 TOTAL SCORE: 2873 Bonus ------- Aligned with FarCom 300 Cogmind --------- Core Integrity 366/400 Matter 300/300 Energy 265/265 System Corruption 0% Temperature Cool (0) Movement Treading (160) Location -9/Exiles Parts ------- > --- POWER (1) -------- Reinforced Ion Engine > --- PROPULSION (3) --- Light Treads Light Treads Light Treads > --- UTILITY (2) ------ Improved Heat Sink Medium Storage Unit > --- WEAPON (3) ------- Small Laser Light Assault Rifle Light Cannon > --- INVENTORY (10) --- Ion Engine Light Treads Light Treads Huge Storage Unit Transport Network Coupler Improved EM Shotgun Light Assault Rifle Rocket Launcher Flail Peak State ------------ > --- POWER ------------ Reinforced Ion Engine > --- PROPULSION ------- Light Treads Light Treads Light Treads > --- UTILITY ---------- Improved Heat Sink Medium Storage Unit > --- WEAPON ----------- Medium Laser Small Laser Light Cannon > --- INVENTORY -------- Ion Engine Ion Engine Light Treads Light Treads Heat Sink Huge Storage Unit Transport Network Coupler Improved EM Shotgun Small Laser Grenade Launcher [Rating: 13] Favorites ----------- Power Reinforced Ion Engine Engine Reinforced Ion Engine Propulsion Light Treads Treads Light Treads Utility Medium Storage Unit Device Heat Sink Storage Medium Storage Unit Weapon Small Laser Energy Gun Small Laser Ballistic Gun Light Assault Rifle Ballistic Cannon Light Cannon Build | -11 -10 -9 -9 -9 ------- Run | Jun Mat Mat Min Exi Slots Evolved 2 | . . 2 . . Power . | . . . . . Propulsion 1 | . . 1 . . Utility . | . . . . . Weapon 1 | . . 1 . . Parts Attached 17 | 6 3 4 4 . Power 3 | 1 1 . 1 . Engine 3 | 1 1 . 1 . Core . | . . . . . Reactor . | . . . . . Propulsion 4 | 2 . 1 1 . Treads 4 | 2 . 1 1 . Leg . | . . . . . Wheel . | . . . . . Hover . | . . . . . Flight . | . . . . . Utility 4 | 1 2 . 1 . Device 2 | . 1 . 1 . Storage 2 | 1 1 . . . Processor . | . . . . . Hackware . | . . . . . Protection . | . . . . . Artifact . | . . . . . Weapon 6 | 2 . 3 1 . Energy Gun 4 | 2 . 2 . . Energy Cannon . | . . . . . Ballistic Gun 1 | . . . 1 . Ballistic Cannon 1 | . . 1 . . Launcher . | . . . . . Special Weapon . | . . . . . Impact Weapon . | . . . . . Slashing Weapon . | . . . . . Piercing Weapon . | . . . . . Special Melee Weapon . | . . . . . Unidentified Prototypes 1 | . . 1 . . Parts Lost 1 | . 1 . . . Power 1 | . 1 . . . Propulsion . | . . . . . Utility . | . . . . . Weapon . | . . . . . Highest Loss Streak 1 | . 1 . . . To Critical Strikes . | . . . . . Average Slot Usage (%) 95 | . 89 98 100 100 Engine 10 | . 8 11 11 11 Treads 31 | . 28 33 33 33 Device 10 | . 8 11 11 11 Storage 12 | . 14 11 11 11 Energy Gun 20 | . 28 22 14 11 Ballistic Gun 3 | . . . 7 11 Ballistic Cannon 6 | . . 10 11 11 Naked Turns . | . . . . . Heaviest Build 27 | 11 19 24 27 26 Greatest Support 60 | 40 40 60 60 60 Greatest Overweight (x) . | . . . . . Average Overweight (x) . | . . . . . Largest Inventory Capacity 10 | 8 10 10 10 10 Average Capacity 9 | 7 9 10 10 10 Most Carried 10 | . 8 8 10 9 Average Carried 6 | . 4 7 8 9 Final Capacity 10 | 8 10 10 10 10 Final Carried 9 | . 8 8 9 9 Class Distribution -------------------- 43% | Mutant 36% | Scavenger-Gunner 19% | Gunner Dominant Class ---------------- Mutant | -10/Materials Gunner | -9/Materials Scavenger-Gunner | -9/Mines Scavenger-Gunner | -9/Exiles Resources | -11 -10 -9 -9 -9 ----------- Run | Jun Mat Mat Min Exi Matter Collected 518 | 158 132 64 164 . Remotely . | . . . . . Salvage Created 1023 | . 487 241 295 . Parts 54 | . 20 14 20 . Haulers Intercepted 2 | . 2 . . . Recyclers Shooed 3 | . 3 . . . Parts Field Recycled . | . . . . . Retrieved Matter . | . . . . . Parts Self-Destructed . | . . . . . Prevented . | . . . . . Kills | -11 -10 -9 -9 -9 ------- Run | Jun Mat Mat Min Exi Combat Hostiles Destroyed 21 | . 6 5 10 . Guns 15 | . 6 2 7 . Cannons 6 | . . 3 3 . Classes Destroyed 8 | . 4 2 2 . Worker 2 | . 1 1 . . Hauler 2 | . 2 . . . Recycler 3 | . 2 . 1 . Watcher 1 | . . 1 . . Swarmer 7 | . . . 7 . Grunt 12 | . 6 4 2 . Brawler 1 | . . . 1 . Sentry 1 | . . 1 . . Best Kill Streak 5 | . 4 5 5 . Combat Bots Only 4 | . 3 3 4 . Max Kills in Single Turn 1 | . 1 1 1 . Gunslinging . | . . . . . Exploded . | . . . . . Melee . | . . . . . Uniques/NPCs Destroyed . | . . . . . Combat | -11 -10 -9 -9 -9 -------- Run | Jun Mat Mat Min Exi Damage Taken 717 | . 354 224 139 . Core 138 | . 104 12 22 . Absorbed by Shields . | . . . . . Core Remaining (%) 79 | 100 58 . . . Volleys Fired 89 | . 55 14 20 . Largest 3 | . 2 3 3 . Hottest 125 | . 90 125 125 . Shots Fired 209 | . 108 42 59 . Gun 175 | . 108 28 39 . Cannon 34 | . . 14 20 . Launcher . | . . . . . Special . | . . . . . Kinetic 46 | . . 14 32 . Thermal 163 | . 108 28 27 . Explosive . | . . . . . Electromagnetic . | . . . . . Robot Hit Streak 10 | . 10 6 7 . Robot Miss Streak 4 | . 4 2 2 . Penetration Max . | . . . . . Secondary Targets . | . . . . . Shots Hit Robots 130 | . 68 27 35 . Core Hits 54 | . 26 12 16 . Critical Kills . | . . . . . Critical Parts Destroyed . | . . . . . Critical Strikes 6 | . 1 3 2 . Burn 4 | . 1 2 1 . Blast 2 | . . 1 1 . Melee Attacks . | . . . . . Impact . | . . . . . Slashing . | . . . . . Piercing . | . . . . . Sneak Attacks . | . . . . . Combat Hostiles . | . . . . . Follow-up Attacks . | . . . . . Damage Inflicted 1602 | . 812 386 404 . Guns 1339 | . 812 251 276 . Cannons 263 | . . 135 128 . Explosions . | . . . . . Melee . | . . . . . Ramming . | . . . . . Kinetic 324 | . . 135 189 . Thermal 1278 | . 812 251 215 . Explosive . | . . . . . Electromagnetic . | . . . . . Impact . | . . . . . Slashing . | . . . . . Piercing . | . . . . . Highest Corruption . | . . . . . Average Corruption . | . . . . . Corruption Purged . | . . . . . Corruption Blocked . | . . . . . Overload Shots . | . . . . . Overflow Damage . | . . . . . Projectiles . | . . . . . Explosions . | . . . . . Melee . | . . . . . Knockbacks 3 | . . 2 1 . Impact . | . . . . . Kinetic 3 | . . 2 1 . Secondary . | . . . . . Self-Inflicted Damage . | . . . . . Shots . | . . . . . Rammed . | . . . . . Targets Rammed . | . . . . . Kicked . | . . . . . Crushed . | . . . . . Highest Temperature 300 | . 300 135 96 . Average Temperature 72 | . 88 45 45 . Received Heat Transfer 345 | . 222 123 . . Siege Activations . | . . . . . Robots Corrupted . | . . . . . Combat Hostiles . | . . . . . Parts Fried . | . . . . . Impact Corruptions . | . . . . . Robots Melted . | . . . . . Combat Hostiles . | . . . . . Parts Melted 6 | . 3 1 2 . Heat Transferred 3681 | . 2255 805 621 . Parts Sabotaged . | . . . . . Parts Stolen . | . . . . . Parts Stripped . | . . . . . Power Chain Reactions . | . . . . . Missiles Intercepted . | . . . . . Alert | -11 -10 -9 -9 -9 ------- Run | Jun Mat Mat Min Exi Peak Influence 328 | . 162 202 328 . Initial 78 | . . 21 78 . Average 90 | . 39 98 200 . Maximum Alert Level 1 | . . 1 1 . Low Security (%) 90 | 100 100 94 65 . Level 1 9 | . . 5 34 . Level 2 . | . . . . . Level 3 . | . . . . . Level 4 . | . . . . . Level 5 . | . . . . . High Security . | . . . . . Max Security . | . . . . . Squads Dispatched 2 | . 1 1 . . Investigation 1 | . 1 . . . Extermination . | . . . . . Reinforcement 1 | . . 1 . . Assault . | . . . . . Garrison . | . . . . . Intercept . | . . . . . Searches Triggered . | . . . . . Construction Impeded . | . . . . . Haulers Reinforced . | . . . . . Active Scanning Responses . | . . . . . Cargo Convoy Interrupts . | . . . . . Stealth | -11 -10 -9 -9 -9 --------- Run | Jun Mat Mat Min Exi Distress Signals 2 | . 1 1 . . Communications Jammed . | . . . . . Distress Signals . | . . . . . Times Spotted 39 | . 14 12 13 . Peak Tracking Total 5 | . 4 4 5 . Tactical Retreats 1 | . . . 1 . Traps | -11 -10 -9 -9 -9 ------- Run | Jun Mat Mat Min Exi Traps Triggered 1 | . 1 . . . Indirectly . | . . . . . Trap Hack Attempts . | . . . . . Triggered . | . . . . . Disarmed . | . . . . . Reprogrammed . | . . . . . Reused . | . . . . . Traps Extracted . | . . . . . Installed . | . . . . . Triggered . | . . . . . Machines | -11 -10 -9 -9 -9 ---------- Run | Jun Mat Mat Min Exi Machines Disabled 1 | . . 1 . . Max in Single Turn 1 | . . 1 . . Machines Repaired . | . . . . . Machines Sabotaged . | . . . . . Overloaded Fab Kills . | . . . . . Hacking | -11 -10 -9 -9 -9 --------- Run | Jun Mat Mat Min Exi Machines Accessed 5 | . 2 1 . 2 Terminals 3 | . 2 1 . . Fabricators . | . . . . . Repair Stations . | . . . . . Recycling Units . | . . . . . Scanalyzers . | . . . . . Garrison Access . | . . . . . Total Hacks 11 | . 5 1 . 5 Successful 8 | . 2 1 . 5 Failed 3 | . 3 . . . Catastrophic . | . . . . . Database Lockouts . | . . . . . Manual 5 | . 4 . . 1 Terminals 6 | . 5 1 . . Fabricators . | . . . . . Repair Stations . | . . . . . Recycling Units . | . . . . . Scanalyzers . | . . . . . Garrison Access . | . . . . . Terminal Hacks 6 | . . 1 . 5 Record 4 | . . . . 4 Locate Traps 1 | . . 1 . . EX-Prototype ID Bank 1 | . . . . 1 Fabricator Hacks . | . . . . . Repair Station Hacks . | . . . . . Recycling Unit Hacks . | . . . . . Scanalyzer . | . . . . . Garrison Access Hacks . | . . . . . Unauthorized Hacks 2 | . 2 . . . Terminals 2 | . 2 . . . Track 2 | . 2 . . . Fabricators . | . . . . . Repair Stations . | . . . . . Recycling Units . | . . . . . Scanalyzers . | . . . . . Garrison Access . | . . . . . Data Cores Recovered . | . . . . . Used . | . . . . . Hacking Detections 2 | . 2 . . . Full Trace Events . | . . . . . Feedback Events . | . . . . . Feedback Blocked . | . . . . . Robot Schematics Acquired . | . . . . . Robots Built . | . . . . . Authchips . | . . . . . Time . | . . . . . Total Robot Build Rating . | . . . . . Part Schematics Acquired . | . . . . . Parts Built . | . . . . . Authchips . | . . . . . Time . | . . . . . Total Part Build Rating . | . . . . . Parts Repaired . | . . . . . Time . | . . . . . Parts Recycled . | . . . . . Recycled Matter . | . . . . . Retrieved Matter . | . . . . . Retrieved Components . | . . . . . Parts Scanalyzed . | . . . . . Part Schematics Acquired . | . . . . . Parts Damaged . | . . . . . Bothacking | -11 -10 -9 -9 -9 ------------ Run | Jun Mat Mat Min Exi Used RIF Installer . | . . . . . Robots Hacked . | . . . . . Non-combat . | . . . . . Combat . | . . . . . Robot Hacks Applied . | . . . . . Relay Couplers Released . | . . . . . Fabnet Peak Effective % . | . . . . . Robots Rewired . | . . . . . Allies Hacked . | . . . . . Hacks Repelled . | . . . . . Allies | -11 -10 -9 -9 -9 -------- Run | Jun Mat Mat Min Exi Total Allies . | . . . . . Largest Group . | . . . . . Highest-Rated Group . | . . . . . Highest-Rated Ally . | . . . . . Total Orders . | . . . . . Ally Attacks . | . . . . . Total Damage . | . . . . . Kills . | . . . . . Allies Corrupted . | . . . . . Allies Melted . | . . . . . Intel | -11 -10 -9 -9 -9 ------- Run | Jun Mat Mat Min Exi Robot Analysis Total . | . . . . . Derelict Logs Recovered 1 | . . . 1 . Drone Launches . | . . . . . Drone Recoveries . | . . . . . Exploration | -11 -10 -9 -9 -9 ------------- Run | Jun Mat Mat Min Exi Turns Passed 1625 | 76 605 334 323 287 Spaces Moved 810 | 51 256 169 155 179 Core 12 | 12 . . . . Treads 798 | 39 256 169 155 179 Legs . | . . . . . Wheels . | . . . . . Hover . | . . . . . Flight . | . . . . . Fastest Speed 50 | 50 160 160 160 160 Average Speed 158 | 134 160 160 160 160 Slowest Speed 160 | 160 160 160 160 160 Overloaded Moves . | . . . . . Propulsion Burnouts . | . . . . . Robots Hopped . | . . . . . Cave-ins Triggered . | . . . . . Exploration Rate (%) 36 | 5 49 28 41 58 Regions Visited 4 Branch Regions 2 Pre-discovered Areas 1 | . . . . 1 Known Exits Taken . | . . . . . Unknown Exits Taken 4 | 1 1 1 1 . Scrap Searched 1 | . . . 1 . Spaces Dug . | . . . . . Terrain Destroyed . | . . . . . Melee . | . . . . . Projectile . | . . . . . AOE . | . . . . . Terrain Rammed . | . . . . . Walls Destroyed . | . . . . . Machines Disabled . | . . . . . Actions | -11 -10 -9 -9 -9 --------- Run | Jun Mat Mat Min Exi Total 967 | 56 343 200 189 179 Wait 34 | . 20 13 1 . Move 806 | 50 255 168 154 179 Hop . | . . . . . Pick Up 11 | . 8 . 3 . Fast Attach 12 | 6 3 2 1 . Attach 1 | . . 1 . . Detach 3 | . 1 1 1 . Swap 4 | . . 1 3 . Drop 7 | . 1 . 6 . Fire 89 | . 55 14 20 . Melee . | . . . . . Ram . | . . . . . Kick . | . . . . . Crush . | . . . . . Escape Stasis . | . . . . . Rewire . | . . . . . Trap . | . . . . . Miscellaneous . | . . . . . Route ------- -11/Junkyard -10/Materials (discovered 2 exits: *Mat / [*Min]) -9/Materials -9/Mines (discovered 2 exits: [*Mat] / *Exi) -9/Exiles History --------- Turn | Location | Event 3 | -11/Junkyard | Discovered new exit (range 16) 77 | -11/Junkyard | Entered Materials 311 | -10/Materials | Build established: Mutant 543 | -10/Materials | Discovered new exit (range 16) 677 | -10/Materials | Discovered new exit (range 3) 682 | -10/Materials | Entered another Materials area 682 | -9/Materials | Evolved 2 slots: Propulsion x1, Weapon x1 903 | -9/Materials | Met 8R-AWN 980 | -9/Materials | Discovered new exit (range 16) 1003 | -9/Materials | Build established: Gunner 1016 | -9/Materials | Entered Mines 1020 | -9/Mines | Followed 8R-AWN into the Mines 1158 | -9/Mines | Received a Rocket Launcher from a helpful Derelict 1199 | -9/Mines | Learned Materials interactive machine intel 1221 | -9/Mines | Discovered new exit (range 8) 1332 | -9/Mines | Discovered new exit (range 5) 1333 | -9/Mines | Build established: Scavenger-Gunner 1339 | -9/Mines | Entered Exiles 1379 | -9/Exiles | Welcomed by 8R-AWN 1407 | -9/Exiles | Met EX-HEX 1469 | -9/Exiles | Met EX-DEC 1475 | -9/Exiles | Learned location of Zion (-7) 1557 | -9/Exiles | Met EX-BIN 1575 | -9/Exiles | Aligned with FarCom system 1576 | -9/Exiles | Given EX-Vault access code 1618 | -9/Exiles | Opened EX-Vault 1626 | -9/Exiles | Self-destructed Last Messages --------------- Modified TNC 0b10 Alert Chip Cloak of Protection Skeleton Box Trap Reconfigurator Supersonic Drone Bay Army-in-a-Box PSU Rigger Chronowheel AWS/Thermal Latent Energy Streamer Gui. Plasma Cannon Firepult YOLO Cannon AWS/Gauss XL Autogun Array AWS/Autocannon Field Lobotomy Kit Longsword +1 Deploy-a-Sentry Map ----- +----------------------------------------------------+ | | | | | | | | | | | | | | | | | | | | | | | | | | | | | | | | | | | | | | | | | ???????????????????#########?????????????????????? | | ???????????????????# #?????????????????????? | | ???????????????????# [ #?????????????????????? | | ???????????????????# ] ! #?????????????????????? | | ???????????????????# X#?????????????????????? | | ???????????????????## @#??????????????????????? | | ???????????????????#X #??????????????????????? | | ???????????????????## #??????????????????????? | | ????????????????????# #??????????????????????? | | ????????????????????# #???###????????????????? | | ????????????????????# #??"""""#??????????????? | | ????????????????????# ## """#??????????????? | | ????????????????????# X""#??????????????? | | ????????????????????# ## """#??????????????? | | ???????????????###??# #??"""""#??????????????? | | ??????????????"""""?# #???###????????????????? | | ??????????????""" ## #??????????????????????? | | ????????????#""X" #??????????????????????? | | ????????????#" #??????????????????????? | | ????????????#" ## #??????????????????????? | | ????????????#""""""?# #?#########????????????? | | ??????????????"###??# #?#"""""""#????????????? | | ????????????????????# #?#"""""""#????????????? | | ????????????????????# #?#"""""""#????????????? | | ???????????????????## ###"" """"#????????????? | | ???????????????????#" """"#????????????? | | ???????????????????#" """#????????????? | | ???????????????????#" """#????????????? | | ???????????????????#" """#????????????? | | ??????####?????????#" """#????????????? | +----------------------------------------------------+ Best States ------------- Heat Dissipation 42 Energy Generation 12 Energy Capacity 265 Matter Stores 300 Matter Capacity 300 Sight Range 16 Terrain Scan Density 10 Evasion (%) 40 Recoil Reduction 3 Item Schematics ----------------- None Robot Schematics ------------------ None Fabricated ------------ Nothing Alien Tech Used ----------------- None Achievements -------------- None Challenges ------------ None Game ------ Seed PrecisionGlidesysCalibrator Manual? 0 Play Time 00:12:47 Cumulative 81.4 hours Start 2023.03.27 @ 19:32:25 End 2023.03.27 @ 20:56:25 Sessions 3 Manual Loads 0 Difficulty Rogue Special Mode None Game No. 69 Rogue 69 Adventurer 0 Explorer 0 Win Type - Total 1 Types 1/0/0/0/0/0/0/0/0 Lore% 54 Gallery% 67 Achievement% 58 Wizard Run 0 Options --------- ASCII 0 Keyboard 1 Movement Vi Keybinds 0 Fullscreen 2 Font 18/Terminus Map View 76x50 Tactical HUD 1 Map Filters NONE Filters NONE Steam X RUN: f2a1f66a-78c8-4dce-a3d2-9ea04f692846